bitfinex-derivatives/quotes_ETHF0:USTF0_20241230
["timestamp","ask_amount","ask_price","bid_price","bid_amount"]
[1735564754139,3.2078,3377.3,3377.1,0.29656]
[1735564754445,3.2078,3377.3,3377.0,0.00230542]
[1735564754636,0.29657,3377.1,3377.0,0.00230542]
[1735564754842,3.2078,3377.3,3377.0,0.00230542]
[1735564755148,3.2078,3377.3,3377.2,0.29656]
[1735564755541,0.29654,3377.5,3377.3,0.29654]
[1735564755934,0.29654,3377.5,3377.0,3.21010542]
[1735564756139,0.29654,3377.5,3377.3,0.29654]
[1735564756346,0.29655,3377.4,3377.2,0.29655]
[1735564756546,3.2078,3377.6,3377.3,0.29655]
[1735564756839,0.29654,3377.4,3377.0,0.00230542]
[1735564757036,0.29654,3377.5,3377.0,0.00230542]
[1735564757242,3.2078,3377.6,3377.5,0.29653]
[1735564757434,0.2965,3377.9,3377.8,0.2965]
[1735564757638,0.29649,3378.0,3377.5,3.2078]
[1735564757840,0.29649,3378.0,3377.2,0.7414]
[1735564757841,3.2078,3378.4,3377.6,0.7517]
[1735564758036,3.2078,3378.4,3377.7,0.7138]
[1735564758247,0.2965,3377.9,3377.7,0.2965]
[1735564758442,2.86032822,3378.2,3377.6,3.9595]
[1735564759151,0.29648,3378.1,3378.0,0.29649]
[1735564759444,3.2078,3378.4,3377.6,3.9595]
[1735564759642,3.2078,3378.4,3378.3,0.29646]
[1735564761439,3.2078,3378.4,3378.1,0.7266]
[1735564761440,3.2078,3378.8,3378.1,0.7266]
[1735564761746,0.2964,3379.1,3378.7,0.29642]
[1735564761949,0.2964,3379.1,3378.1,5.7266]
[1735564761950,3.2078,3378.8,3378.5,0.7419]
[1735564762143,3.2078,3378.8,3377.9,1.29724592]
[1735564762144,6.06812822,3378.8,3377.9,1.29724592]
[1735564762439,3.2078,3378.3,3377.7,0.7046]
[1735564762644,0.29653,3377.5,3377.4,4.60467513]
[1735564762842,3.2078,3377.8,3377.4,4.60467513]
[1735564763043,0.29653,3377.5,3377.4,4.60467513]
[1735564763643,6.36465822,3377.5,3377.4,0.34958513]
[1735564763836,11.36465822,3377.5,3377.4,0.34958513]
[1735564764043,52.16465822,3377.5,3377.4,0.34958513]
[1735564764441,46.86812822,3377.5,3377.0,0.00230542]
[1735564764648,6.36469822,3377.1,3377.0,0.00230542]
[1735564765450,3.50437,3377.1,3377.0,0.00230542]
[1735564765647,3.2078,3377.1,3377.0,0.00230542]
[1735564765847,3.37424523,3377.4,3377.0,0.00230542]
[1735564766047,3.37424523,3377.4,3377.3,3.50435]
[1735564766243,3.37424523,3377.4,3377.3,3.2078]
[1735564766548,3.37424523,3377.4,3377.3,3.50435]
[1735564766743,4.49899364,3377.6,3377.3,8.2078]
[1735564766952,3.98483887,3377.6,3377.5,0.29653]
[1735564767142,5.62374206,3377.9,3377.4,0.7147]
[1735564767454,0.29647,3378.2,3377.6,0.29652]
[1735564767845,3.2078,3378.7,3377.4,0.7147]
[1735564768043,5.62374206,3378.8,3378.2,0.29647]
[1735564768044,5.92016206,3378.8,3378.2,0.29647]
[1735564768351,5.92016206,3378.8,3378.7,3.2078]
[1735564768547,0.29642,3378.8,3378.7,3.2078]
[1735564768849,5.62374206,3379.4,3378.7,3.2078]
[1735564769243,0.29642,3378.8,3378.7,3.2078]
[1735564771948,0.29641,3379.0,3378.7,3.2078]
[1735564772149,6.79222822,3379.6,3378.7,3.2078]
[1735564772347,6.79222822,3379.6,3378.9,0.2964]
[1735564772548,3.9319,3379.6,3378.9,0.2964]
[1735564772746,0.29638,3379.3,3379.0,0.7612]
[1735564772949,0.29639,3379.2,3379.0,0.7612]
[1735564773357,0.29641,3378.9,3378.7,3.2078]
[1735564774053,6.79222822,3379.6,3378.7,3.2078]
[1735564774252,0.29641,3379.0,3378.7,3.2078]
[1735564774550,6.79222822,3379.6,3378.7,3.2078]
[1735564774758,0.29639,3379.1,3378.7,3.50422]
[1735564774948,6.79222822,3379.6,3378.7,3.2078]
[1735564775251,0.29642,3378.8,3378.7,3.2078]
[1735564775751,0.29642,3378.8,3378.0,6.91760139]
[1735564775752,0.29648,3378.1,3378.0,6.91760139]
[1735564776052,6.36460822,3378.1,3378.0,6.91760139]
[1735564776852,6.36460822,3378.1,3377.3,0.29655]
[1735564776853,0.29652,3377.6,3377.3,0.29655]
[1735564777244,0.29652,3377.6,3377.2,0.29655]
[1735564777450,0.29652,3377.7,3377.1,8.9129]
[1735564777755,6.06812822,3378.1,3377.3,0.29654]
[1735564777957,6.06812822,3378.1,3377.2,0.29655]
[1735564778152,6.06812822,3378.1,3377.1,3.9129]
[1735564778351,6.06812822,3378.1,3377.3,0.29654]
[1735564778659,0.29653,3377.6,3377.2,0.29655]
[1735564778954,0.29653,3377.6,3377.3,0.29654]
[1735564780551,3.2078,3378.1,3377.1,3.9129]
[1735564780756,0.29649,3378.0,3377.4,0.29654]
[1735564780951,0.29652,3377.6,3377.3,0.29654]
[1735564781152,3.2078,3378.1,3377.1,8.9129]
[1735564781353,0.2965,3377.9,3377.6,0.29652]
[1735564781655,3.2078,3379.0,3377.7,1.318]
[1735564781854,3.2078,3379.0,3378.2,3.2078]
[1735564782055,3.2078,3379.0,3378.3,0.7741]
[1735564782358,0.29642,3378.8,3378.5,0.29644]
[1735564782559,0.29641,3378.9,3378.6,0.29643]
[1735564782860,0.29641,3378.9,3378.7,0.29642]
[1735564783051,0.29641,3378.9,3378.6,0.29643]
[1735564783357,0.29641,3378.9,3378.3,0.7741]
[1735564783358,0.29643,3378.7,3378.4,0.29645]
[1735564784059,0.29642,3378.8,3378.5,0.29644]
[1735564784261,3.2078,3379.0,3378.3,0.7741]
[1735564784762,0.29641,3378.9,3378.6,0.29643]
[1735564784957,3.2078,3379.0,3378.3,0.7741]
[1735564785155,0.29642,3378.8,3378.3,0.7741]
[1735564785456,0.29642,3378.8,3378.5,0.29644]
[1735564785655,0.29641,3378.9,3378.6,0.29643]
[1735564786353,0.29642,3378.8,3378.6,0.29643]
[1735564786560,0.29645,3378.5,3378.3,0.7741]
[1735564786756,3.2078,3379.0,3378.3,1.07056]
[1735564786968,0.29645,3378.5,3378.3,0.7741]
[1735564787157,0.29645,3378.5,3378.3,1.07056]
[1735564787460,3.2078,3379.0,3378.3,1.07056]
[1735564788156,0.29644,3378.6,3378.3,0.7741]
[1735564788355,0.29644,3378.6,3378.4,0.29645]
[1735564788549,3.2078,3379.0,3378.3,0.7741]
[1735564788759,0.74103,3378.9,3378.2,3.2078]
[1735564788960,3.2078,3378.6,3377.7,10.12540139]
[1735564789259,0.2965,3377.9,3377.7,6.91760139]
[1735564789463,0.2965,3377.9,3377.7,7.21411139]
[1735564789856,1.48582,3378.5,3377.7,7.21411139]
[1735564789857,0.29649,3378.0,3377.7,7.21411139]
[1735564790461,0.2965,3377.9,3377.7,7.21411139]
[1735564790761,0.29649,3378.0,3377.8,0.2965]
[1735564790964,0.7447,3378.5,3377.6,0.7314]
[1735564791152,0.29649,3378.1,3377.8,0.2965]
[1735564791356,0.29649,3378.1,3377.9,0.29649]
[1735564791860,0.7447,3378.5,3377.8,0.2965]
[1735564792167,0.29649,3378.0,3377.6,0.7314]
[1735564792463,0.7447,3378.5,3377.9,0.2965]
[1735564792661,0.29648,3378.1,3377.9,0.2965]
[1735564793057,0.29646,3378.4,3378.2,0.29646]
[1735564793262,0.7447,3378.5,3377.6,0.7314]
[1735564793465,0.7447,3378.5,3377.7,0.29651]
[1735564793466,0.2965,3377.9,3377.7,0.29651]
[1735564794058,0.29649,3378.0,3377.8,0.2965]
[1735564794266,0.7447,3378.5,3377.9,0.29649]
[1735564794267,0.29649,3378.1,3377.9,0.29649]
[1735564794475,0.7447,3378.5,3377.3,3.2078]
[1735564794874,0.7447,3378.5,3377.9,0.2965]
[1735564795165,0.29648,3378.1,3377.9,0.2965]
[1735564795565,0.29649,3378.0,3377.8,0.2965]
[1735564795755,0.29649,3378.0,3377.9,0.2965]
[1735564796270,0.29649,3378.0,3377.4,0.29654]
[1735564796463,0.7447,3378.5,3377.9,0.29649]
[1735564796464,0.29649,3378.1,3377.9,0.29649]
[1735564796663,0.7447,3378.5,3377.9,0.29649]
[1735564796864,0.29649,3378.0,3377.8,0.2965]
[1735564797063,0.29645,3378.4,3377.8,0.2965]
[1735564797367,0.29649,3378.0,3377.9,0.2965]
[1735564797569,0.29649,3378.0,3377.8,0.2965]
[1735564797868,0.2965,3377.9,3377.3,3.5046]
[1735564798068,0.74114,3378.4,3377.3,3.5046]
[1735564798270,0.29652,3377.7,3377.6,0.29652]
[1735564798572,0.29652,3377.7,3377.5,0.29652]
[1735564798869,0.29652,3377.7,3377.3,3.2078]
[1735564799071,3.2078,3378.2,3377.3,3.2078]
[1735564799368,0.29652,3377.7,3377.5,0.29652]
[1735564799568,0.29652,3377.7,3377.6,0.29652]
[1735564799771,3.949,3378.2,3377.3,3.2078]
[1735564799964,0.74123,3378.0,3377.4,0.29653]
[1735564800165,0.29653,3377.6,3377.3,3.2078]
[1735564800467,0.7871,3378.1,3377.3,3.2078]
[1735564800468,0.7153,3378.0,3377.3,3.2078]
[1735564800772,0.7153,3378.0,3377.3,0.29655]
[1735564800971,0.7153,3378.0,3377.0,0.00230542]
[1735564800972,6.06812822,3377.8,3377.0,0.00230542]
[1735564801266,3.2078,3377.4,3377.3,0.29655]
[1735564801471,0.29653,3377.6,3377.5,0.29653]
[1735564801674,0.29654,3377.5,3377.3,0.29654]
[1735564801975,0.29656,3377.2,3377.1,0.29656]
[1735564802266,0.29655,3377.3,3377.2,0.29656]
[1735564802471,0.7403,3377.7,3377.0,0.00230542]
[1735564802767,0.7403,3377.7,3377.6,0.29652]
[1735564803069,0.7403,3377.7,3377.0,0.00230542]
[1735564803265,0.29656,3377.2,3377.0,0.00230542]
[1735564803765,0.29656,3377.2,3377.0,0.29887542]
[1735564804169,3.2078,3377.4,3377.0,0.00230542]
[1735564804372,3.2078,3377.4,3377.3,0.29655]
[1735564804768,0.7403,3377.7,3377.6,0.29652]
[1735564804964,3.2078,3378.0,3377.9,0.2965]
[1735564805864,3.2078,3378.4,3378.3,0.29646]
[1735564806668,2.26484288,3378.6,3377.9,3.2078]
[1735564806868,2.26484288,3378.6,3378.5,0.29644]
[1735564807069,3.2078,3379.0,3378.3,4.5108]
[1735564807275,2.26484288,3379.3,3379.2,0.29638]
[1735564808977,3.2078,3379.4,3378.8,0.7849]
[1735564809166,3.2078,3379.4,3379.3,0.29637]
[1735564809477,3.2078,3379.4,3378.2,10.58915411]
[1735564809675,3.2078,3378.9,3378.4,6.96831711]
[1735564809870,3.26937,3379.8,3378.6,0.74109]
[1735564810073,3.26937,3379.8,3379.6,0.29634]
[1735564810269,3.26937,3379.8,3379.7,0.29634]
[1735564810971,3.5657,3379.8,3379.6,0.29634]
[1735564811479,3.26937,3379.8,3379.6,0.29634]
[1735564811778,3.26937,3379.8,3379.7,0.29634]
[1735564813269,0.06157,3379.8,3379.7,6.59934]
[1735564813475,3.2078,3380.3,3380.2,0.29629]
[1735564813671,3.2078,3380.8,3380.6,0.29626]
[1735564813977,3.2078,3380.8,3379.9,3.94861]
[1735564814171,3.50404,3380.8,3380.5,0.29627]
[1735564814474,0.29625,3380.7,3380.4,0.29628]
[1735564814771,0.29626,3380.7,3380.1,0.2963]
[1735564815077,3.2078,3380.8,3380.0,0.7421]
[1735564815374,3.2078,3380.8,3380.0,3.60242822]
[1735564815673,3.50405,3380.8,3380.5,0.29626]
[1735564815874,3.50405,3380.8,3380.0,3.60242822]
[1735564815875,3.2078,3380.8,3380.0,3.60242822]
[1735564816063,3.2078,3380.8,3380.5,0.29626]
[1735564816263,0.29627,3380.5,3380.2,0.29629]
[1735564816665,3.2078,3380.8,3380.3,0.29628]
[1735564816872,3.2078,3380.8,3380.0,0.7421]
[1735564817177,0.29625,3380.7,3380.3,0.29628]
[1735564817476,3.2078,3380.8,3380.0,0.7421]
[1735564817668,3.2078,3380.8,3380.1,0.296]
[1735564817874,3.2078,3380.8,3380.7,0.29625]
[1735564818074,0.7956,3381.1,3380.8,0.29624]
[1735564818277,0.7956,3381.1,3380.4,3.2078]
[1735564818475,1.09182,3381.1,3380.8,0.29624]
[1735564818674,0.7956,3381.1,3380.8,0.29624]
[1735564818867,1.09182,3381.1,3380.8,0.29624]
[1735564819071,0.29627,3380.6,3380.2,0.29629]
[1735564819271,0.29627,3380.6,3379.8,0.29632]
[1735564819272,0.2963,3380.1,3379.8,0.29632]
[1735564819470,3.2078,3380.3,3379.7,0.751]
[1735564819881,3.2078,3380.3,3380.2,0.29629]
[1735564820072,3.2078,3380.7,3380.3,0.29628]
[1735564820275,3.2078,3380.7,3380.6,0.29626]
[1735564820468,0.29625,3380.8,3380.5,0.29626]
[1735564820672,0.29625,3380.8,3380.0,2.80589]
[1735564820876,3.2078,3380.7,3380.0,2.0651]
[1735564821079,3.2078,3380.7,3380.5,0.29626]
[1735564821274,3.2078,3380.7,3380.0,2.0651]
[1735564821472,3.2078,3380.7,3380.5,0.29627]
[1735564821677,3.2078,3380.7,3380.6,0.29626]
[1735564821879,0.7956,3381.1,3381.0,0.29622]
[1735564822184,3.9727,3381.2,3380.5,2.39360079]
[1735564822369,3.2078,3381.2,3381.1,0.29622]
[1735564822568,3.2078,3381.6,3381.5,0.29618]
[1735564825775,3.2078,3381.6,3381.4,0.29618]
[1735564826075,3.50397,3381.6,3381.4,0.29618]
[1735564826577,3.2078,3381.6,3381.3,0.29619]
[1735564826784,3.2078,3381.6,3380.9,3.2078]
[1735564826987,3.2078,3381.1,3381.0,0.29622]
[1735564828384,3.2078,3381.1,3380.6,0.7317]
[1735564828385,0.29623,3381.0,3380.7,0.29625]
[1735564828683,0.29622,3381.0,3380.8,0.29624]
[1735564829186,0.29622,3381.1,3380.9,0.29623]
[1735564829878,0.29621,3381.2,3381.0,0.29622]
[1735564830686,0.7972,3381.4,3380.6,0.7317]
[1735564830983,0.29622,3381.1,3380.9,0.29623]
[1735564831185,0.7972,3381.4,3380.6,0.7317]
[1735564831386,0.29621,3381.2,3381.0,0.29622]
[1735564831581,0.7972,3381.4,3381.3,0.2962]
[1735564831778,0.7972,3381.4,3381.1,0.29621]
[1735564831978,0.7972,3381.4,3380.9,0.29623]
[1735564832189,0.29622,3381.1,3380.9,0.29623]
[1735564832375,3.2078,3381.2,3380.5,0.29626]
[1735564832575,3.2078,3381.2,3380.4,0.29628]
[1735564832774,3.2078,3380.8,3379.8,3.2078]
[1735564832978,3.2078,3380.8,3380.0,0.29631]
[1735564832979,0.2963,3380.2,3380.0,0.29631]
[1735564833186,0.29629,3380.3,3380.0,0.2963]
[1735564833389,0.2963,3380.2,3380.0,0.2963]
[1735564833681,6.06737585,3380.4,3379.4,3.5038]
[1735564833885,0.29636,3379.5,3379.4,3.50416]
[1735564834088,0.29636,3379.5,3379.3,0.29637]
[1735564834884,0.29635,3379.6,3379.4,0.29636]
[1735564835486,1.5483,3379.8,3379.7,0.29634]
[1735564835783,0.7772,3379.8,3379.7,0.29634]
[1735564836490,3.50412,3379.9,3379.7,0.29633]
[1735564836889,3.2078,3379.9,3379.8,0.29633]
[1735564837385,0.7704,3380.4,3379.8,3.2078]
[1735564837581,3.50407,3380.6,3379.8,3.2078]
[1735564837786,3.50407,3380.6,3379.9,0.29632]
[1735564837787,0.29628,3380.4,3379.9,0.29632]
[1735564838088,0.29627,3380.5,3380.3,0.29628]
[1735564838280,3.2078,3380.6,3380.1,0.2963]
[1735564838281,0.29629,3380.3,3380.1,0.2963]
[1735564838483,3.2078,3380.6,3379.8,3.2078]
[1735564838689,3.2078,3380.0,3379.4,3.5038]
[1735564838892,0.29634,3379.7,3379.5,0.29635]
[1735564839191,1.0302,3380.2,3379.9,0.29632]
[1735564839392,1.0302,3380.2,3380.0,0.29631]
[1735564839586,0.29633,3379.9,3379.5,0.29636]
[1735564839885,0.29633,3379.9,3379.4,3.5038]
[1735564839886,0.7339,3380.2,3379.4,3.5038]
[1735564840091,0.7339,3380.2,3379.7,0.29633]
[1735564840092,0.0103426,3379.8,3379.7,0.29633]
[1735564840487,0.29635,3379.6,3379.4,3.50416]
[1735564840784,0.29635,3379.6,3379.4,0.29636]
[1735564840785,3.50415,3379.6,3379.4,0.29636]
[1735564840989,3.2078,3379.6,3379.0,3.2078]
[1735564841190,0.29638,3379.3,3379.1,0.29639]
[1735564841593,0.03163093,3379.2,3379.1,0.29638]
[1735564846188,0.03163093,3379.2,3379.1,1.58538]
[1735564846692,0.03163093,3379.2,3379.1,6.58538]
[1735564846998,3.2078,3380.3,3380.2,0.29629]
[1735564847192,0.29627,3380.5,3380.3,0.29628]
[1735564847388,3.9876,3380.7,3380.3,0.29628]
[1735564847598,0.29627,3380.5,3380.3,0.29628]
[1735564848288,3.9876,3380.7,3379.9,3.2078]
[1735564848793,3.15587585,3380.2,3379.1,5.2478]
[1735564848990,3.2078,3379.9,3379.1,3.9588]
[1735564849196,0.29635,3379.6,3379.4,0.29636]
[1735564849592,3.2078,3379.9,3379.1,3.9588]
[1735564849893,0.7225,3380.1,3379.2,0.74095]
[1735564850096,0.29633,3379.8,3379.2,0.74095]
[1735564850291,0.29634,3379.7,3379.5,0.29635]
[1735564850493,0.29634,3379.7,3379.1,3.9588]
[1735564850695,3.2078,3379.9,3379.1,3.9588]
[1735564850900,0.29634,3379.7,3379.1,3.9588]
[1735564851101,0.29634,3379.7,3379.6,0.29635]
[1735564851599,0.29634,3379.7,3379.1,1.26726344]
[1735564851899,0.7491,3379.8,3379.7,0.29634]
[1735564852505,0.7225,3380.1,3380.0,0.29631]
[1735564853195,3.2078,3380.3,3380.2,0.29629]
[1735564853596,3.2078,3380.3,3379.6,0.74087]
[1735564853799,0.2963,3380.2,3379.6,0.74087]
[1735564853995,3.2078,3380.3,3379.5,1.289]
[1735564854199,0.29629,3380.2,3379.8,0.29633]
[1735564854394,0.29632,3380.0,3379.5,1.289]
[1735564854595,0.2963,3380.2,3380.1,0.2963]
[1735564855300,3.2078,3380.3,3379.5,1.289]
[1735564855502,3.2078,3380.3,3380.2,0.29629]
[1735564857399,3.50409,3380.3,3380.2,0.29629]
[1735564857600,3.2078,3380.3,3380.2,0.29629]
[1735564857801,3.50409,3380.3,3380.2,0.29629]
[1735564857998,0.29632,3380.0,3379.3,7.26431711]
[1735564858203,3.2078,3380.3,3379.4,2.69033504]
[1735564858405,0.29629,3380.2,3380.1,0.2963]
[1735564859106,3.2078,3380.3,3379.5,1.0369]
[1735564859297,3.2078,3380.3,3380.2,0.29629]
[1735564860206,0.7387,3380.8,3379.8,0.74081]
[1735564860207,3.2078,3380.8,3380.0,6.89113504]
[1735564860410,2.26484288,3381.1,3380.4,2.39433504]
[1735564860601,2.26484288,3381.1,3381.0,0.29622]
[1735564860807,3.9134,3381.2,3380.9,0.29623]
[1735564860808,0.29622,3381.0,3380.9,0.29623]
[1735564860999,3.9134,3381.2,3380.2,1.29626157]
[1735564861202,3.50405,3380.8,3380.7,0.29625]
[1735564861407,3.2078,3380.8,3380.1,3.15383504]
[1735564861611,3.2078,3380.8,3380.4,0.29627]
[1735564861812,3.2078,3380.8,3380.0,4.4978]
[1735564862000,3.2078,3380.4,3379.5,6.96831711]
[1735564862205,3.2078,3379.9,3379.5,6.96831711]
[1735564862408,3.2078,3379.9,3379.8,0.29633]
[1735564863606,3.2078,3379.9,3379.6,6.96831711]
[1735564863909,0.29634,3379.7,3379.6,6.96831711]
[1735564864413,0.29635,3379.6,3379.4,0.29636]
[1735564865213,3.2078,3379.9,3379.5,0.29636]
[1735564865604,0.29635,3379.6,3379.5,0.29636]
[1735564866011,0.29635,3379.6,3379.0,2.327]
[1735564866211,0.29634,3379.8,3379.6,0.29634]
[1735564866515,0.29634,3379.7,3379.0,2.327]
[1735564866815,0.29634,3379.7,3379.5,0.29635]
[1735564867017,0.29634,3379.7,3379.0,2.327]
[1735564867216,3.2078,3379.9,3379.0,2.327]
[1735564867416,0.29634,3379.7,3379.6,0.29634]
[1735564867913,0.29636,3379.5,3379.4,0.29636]
[1735564868214,0.29635,3379.6,3379.5,0.29635]
[1735564868416,0.29633,3379.8,3379.7,0.29634]
[1735564868716,0.29635,3379.7,3379.6,0.29635]
[1735564869016,0.29636,3379.5,3379.1,0.29639]
[1735564869313,0.29635,3379.6,3379.5,0.29635]
[1735564870015,3.2078,3379.9,3379.0,2.327]
[1735564870215,3.2078,3379.9,3378.9,0.296]
[1735564870216,3.2078,3379.4,3378.7,10.17611711]
[1735564870513,0.7617,3379.3,3379.2,0.29638]
[1735564870713,0.29639,3379.2,3379.1,0.29639]
[1735564870921,1.4905,3379.3,3378.7,6.96831711]
[1735564871116,0.29642,3378.9,3378.8,0.29641]
[1735564871417,0.29641,3378.9,3378.8,0.29641]
[1735564871818,0.29642,3378.8,3378.7,6.96831711]
[1735564872111,0.29642,3378.8,3378.6,0.29643]
[1735564872310,0.29642,3378.9,3378.7,0.29642]
[1735564872715,0.29642,3378.9,3378.3,0.296]
[1735564873017,3.2078,3378.6,3378.3,0.296]
[1735564873215,3.2078,3379.0,3378.3,0.296]
[1735564873413,3.2078,3379.0,3378.9,0.2964]
[1735564873713,3.2078,3379.0,3378.9,0.29641]
[1735564873919,3.5042,3379.0,3378.9,0.29641]
[1735564874423,1.4905,3379.3,3379.2,0.29638]
[1735564874916,1.78687,3379.3,3379.2,0.29638]
[1735564875415,1.4905,3379.3,3379.2,0.29638]
[1735564875617,1.4905,3379.3,3378.5,10.17611711]
[1735564875809,3.50423,3378.6,3378.5,6.96831711]
[1735564876007,3.50423,3378.6,3378.5,5.79371711]
[1735564876212,3.50423,3378.6,3378.5,4.61911711]
[1735564876622,0.29647,3378.2,3378.1,0.29648]
[1735564876913,3.2078,3378.2,3378.1,0.29648]
[1735564877311,3.2078,3378.6,3378.1,2.48758]
[1735564877517,3.2078,3378.6,3378.5,0.29644]
[1735564877910,3.2078,3378.6,3378.1,1.7607]
[1735564878218,0.29648,3378.1,3378.0,1.29064]
[1735564878516,3.50428,3378.2,3378.1,0.29647]
[1735564878719,0.29648,3378.1,3378.0,0.99415]
[1735564879824,3.50427,3378.2,3378.1,0.29648]
[1735564880025,3.50427,3378.2,3378.0,1.29063]
[1735564880417,3.2078,3378.2,3378.0,1.29063]
[1735564880617,0.29648,3378.1,3378.0,1.29063]
[1735564881028,3.50427,3378.2,3378.0,1.29063]
[1735564881222,0.29648,3378.1,3378.0,1.29063]
[1735564881612,3.2078,3378.2,3378.0,0.99415]
[1735564881825,3.2078,3378.2,3378.1,0.29648]
[1735564883119,0.29648,3378.1,3378.0,0.99415]
[1735564883320,0.29648,3378.1,3378.0,1.29064]
[1735564883518,0.29648,3378.1,3378.0,0.99415]
[1735564884425,1.79838,3378.1,3378.0,0.99415]
[1735564884839,0.29653,3377.5,3377.4,4.64177338]
[1735564885037,3.50433,3377.5,3377.4,4.64177338]
[1735564885233,3.2078,3377.5,3377.4,4.64177338]
[1735564885436,3.50433,3377.5,3377.4,4.64177338]
[1735564885640,3.50433,3377.5,3377.4,4.93831338]
[1735564885833,3.50433,3377.5,3377.4,4.64177338]
[1735564886440,0.29654,3377.4,3377.3,0.29654]
[1735564886839,0.29655,3377.3,3377.2,0.29655]
[1735564887135,0.29655,3377.4,3377.2,0.29655]
[1735564887435,0.29654,3377.4,3377.3,0.29655]
[1735564887735,3.2078,3377.5,3377.4,0.29654]
[1735564887943,3.2078,3377.5,3376.8,1.4867]
[1735564888436,3.50434,3377.5,3377.3,0.29655]
[1735564888640,3.2078,3377.5,3377.3,0.29655]
[1735564889139,3.50433,3377.5,3377.3,0.29655]
[1735564889739,3.50433,3377.5,3377.4,0.29654]
[1735564890038,3.50433,3377.5,3376.8,1.4867]
[1735564890238,3.50433,3377.5,3377.3,0.29655]
[1735564890440,3.2078,3377.5,3377.4,0.29654]
[1735564890641,3.50434,3377.5,3376.8,1.4867]
[1735564890934,3.50434,3377.5,3376.8,2.22817]
[1735564891139,3.50434,3377.5,3377.3,0.29654]
[1735564891338,3.50434,3377.5,3377.4,0.29654]
[1735564891841,3.2078,3377.5,3376.8,2.22817]
[1735564892038,3.50433,3377.5,3377.4,0.29654]
[1735564892438,3.2078,3377.5,3377.4,0.29654]
[1735564893233,3.2078,3377.5,3376.8,1.4867]
[1735564893537,3.2078,3377.0,3376.9,0.29658]
[1735564895940,3.2078,3377.0,3376.5,1.22761265]
[1735564896145,3.2078,3376.6,3376.5,0.93081265]
[1735564896441,0.29669,3375.7,3375.6,4.64177338]
[1735564896642,5.90248695,3375.7,3375.6,4.64177338]
[1735564896847,5.90248695,3375.7,3375.6,4.01258603]
[1735564897143,3.2078,3375.1,3374.6,13.34944955]
[1735564897342,3.2078,3375.1,3374.4,16.25940659]
[1735564897343,0.29679,3374.5,3374.4,5.21024059]
[1735564897646,0.29681,3374.3,3374.2,8.10108467]
[1735564897834,5.90260695,3374.3,3374.2,3.81857035]
[1735564898039,10.90260695,3374.3,3374.2,1.33412984]
[1735564898238,10.90260695,3374.3,3374.1,19.00558111]
[1735564898239,0.29682,3374.2,3374.1,19.00558111]
[1735564898442,0.29682,3374.2,3374.1,18.36410111]
[1735564898645,0.74208,3374.1,3372.1,0.7331]
[1735564898839,3.2078,3373.0,3372.7,6.22255]
[1735564899041,3.2078,3373.0,3372.8,6.22254]
[1735564899246,3.50473,3373.0,3372.7,5.9256]
[1735564899442,3.2078,3373.0,3372.8,5.9256]
[1735564899651,3.50473,3373.0,3372.8,5.9256]
[1735564899848,3.2078,3373.0,3372.8,5.9256]
[1735564900146,3.50473,3373.0,3372.8,5.9256]
[1735564900545,3.2078,3373.0,3372.8,5.9256]
[1735564900845,3.2078,3373.0,3372.6,2.968]
[1735564901043,3.50473,3373.0,3372.6,1.47049005]
[1735564901344,2.87451495,3372.8,3371.6,3.2078]
[1735564901542,3.2078,3372.3,3371.8,0.29702]
[1735564901742,3.2078,3372.3,3372.0,0.29701]
[1735564901949,3.2078,3372.3,3371.8,0.29703]
[1735564902249,3.50479,3372.3,3371.8,0.29703]
[1735564902449,3.50479,3372.3,3371.8,17.84835736]
[1735564902643,3.2078,3372.3,3371.8,17.55132736]
[1735564902839,3.2078,3372.3,3372.0,0.29701]
[1735564903045,3.2078,3372.3,3371.9,2.06919871]
[1735564903547,3.2078,3372.3,3372.0,0.29701]
[1735564903746,0.297,3372.2,3371.9,2.06919871]
[1735564904051,3.2078,3372.3,3371.6,3.2078]
[1735564904349,3.2078,3372.3,3371.6,3.50484]
[1735564904646,3.2078,3372.3,3371.6,3.2078]
[1735564904838,3.2078,3372.3,3371.7,2.06919871]
[1735564905041,3.2078,3372.3,3372.2,0.29703]
[1735564905448,3.2078,3372.3,3372.2,2.06919871]
[1735564905651,3.2078,3372.3,3372.2,2.36622871]
[1735564906044,3.2078,3372.3,3372.2,2.06919871]
[1735564906545,3.2078,3372.3,3371.6,3.2078]
[1735564906850,3.2078,3372.3,3372.1,0.29703]
[1735564907142,3.2078,3372.3,3372.2,0.29703]
[1735564907643,3.2078,3372.3,3372.0,0.29704]
[1735564907941,3.2078,3372.3,3372.1,0.29703]
[1735564908150,3.2078,3372.3,3372.2,0.29703]
[1735564908548,3.2078,3372.3,3372.2,17.84835736]
[1735564909448,3.2078,3372.3,3372.2,17.55132736]
[1735564909749,3.2078,3372.3,3372.2,7.74569381]
[1735564914248,2.87451495,3373.2,3372.2,7.44866381]
[1735564914249,3.2078,3372.7,3372.2,7.44866381]
[1735564914444,3.2078,3372.7,3372.6,0.29699]
[1735564919745,6.08231495,3372.7,3371.7,3.2078]
[1735564920055,0.297,3372.5,3372.3,0.29701]
[1735564920251,2.23359155,3372.6,3371.8,1.51176]
[1735564920547,2.23359155,3372.6,3371.8,8.96042381]
[1735564920848,0.29702,3372.3,3372.1,0.29703]
[1735564921048,2.23359155,3372.6,3372.1,7.44866381]
[1735564921247,0.29703,3372.2,3372.1,7.44866381]
[1735564921549,0.29703,3372.2,3372.1,7.74569381]
[1735564921761,0.29703,3372.2,3372.0,0.29704]
[1735564922043,2.23359155,3372.3,3371.8,1.06616]
[1735564922245,2.23359155,3372.3,3371.8,8.21776381]